[Event "*** Titled Tuesday Blitz"]
[Site "Chess.com"]
[Date "2020.12.29"]
[Round "4"]
[White "scabies1"]
[Black "stanyga"]
[Result "0-1"]
[WhiteElo "2330"]
[BlackElo "2605"]
[TimeControl "180+1"]
[EndTime "10:38:36 PST"]
[Termination "stanyga won by resignation"]

1. e4 {[%clk 0:02:59.3]} 1... c5 {[%clk 0:02:59.4]} 2. Nf3 {[%clk 0:02:59.1]}
2... e6 {[%clk 0:02:59.8]} 3. d4 {[%clk 0:02:58.4]} 3... cxd4 {[%clk 0:03:00.7]}
4. Nxd4 {[%clk 0:02:59.3]} 4... Nc6 {[%clk 0:03:01]} 5. Nc3 {[%clk 0:02:59.6]}
5... Qc7 {[%clk 0:03:01.4]} 6. Be3 {[%clk 0:02:59.2]} 6... a6 {[%clk 0:03:00.6]}
7. Qd2 {[%clk 0:02:58.6]} 7... Nf6 {[%clk 0:02:59.7]} 8. f3 {[%clk 0:02:58.5]}
8... Be7 {[%clk 0:02:56.3]} 9. O-O-O {[%clk 0:02:57.7]} 9... b5 {[%clk
0:02:54.8]} 10. g4 {[%clk 0:02:56.5]} 10... O-O {[%clk 0:02:52.7]} 11. g5 {[%clk
0:02:51.5]} 11... Nh5 {[%clk 0:02:52.4]} 12. Bh3 {[%clk 0:02:42]} 12... Nxd4
{[%clk 0:02:35.2]} 13. Bxd4 {[%clk 0:02:31.9]} 13... Nf4 {[%clk 0:02:35]} 14.
Bf1 {[%clk 0:02:22.9]} 14... Bxg5 {[%clk 0:02:34.5]} 15. Be3 {[%clk 0:02:07.8]}
15... Bb7 {[%clk 0:02:11.3]} 16. Rg1 {[%clk 0:02:04.8]} 16... Bh6 {[%clk
0:02:09.2]} 17. Kb1 {[%clk 0:02:04.3]} 17... Rac8 {[%clk 0:01:14.4]} 18. Ne2
{[%clk 0:01:47.9]} 18... Nxe2 {[%clk 0:01:09.4]} 19. Bxh6 {[%clk 0:01:00.1]}
19... Nxg1 {[%clk 0:01:07.9]} 20. Qg2 {[%clk 0:00:56.2]} 20... Qxc2+ {[%clk
0:00:37.3]} 21. Qxc2 {[%clk 0:00:53.9]} 21... Rxc2 {[%clk 0:00:38.2]} 22. Kxc2
{[%clk 0:00:54.4]} 22... gxh6 {[%clk 0:00:37.7]} 23. Rxd7 {[%clk 0:00:41.5]}
23... Bc6 {[%clk 0:00:36.9]} 24. Rc7 {[%clk 0:00:35.4]} 24... Nxf3 {[%clk
0:00:36.1]} 25. Kd3 {[%clk 0:00:28.1]} 25... Ne5+ {[%clk 0:00:32.2]} 26. Kd4
{[%clk 0:00:26.9]} 26... f6 {[%clk 0:00:32.3]} 27. Bh3 {[%clk 0:00:24.6]} 27...
Rd8+ {[%clk 0:00:25.7]} 28. Kc5 {[%clk 0:00:24.9]} 28... Bxe4 {[%clk 0:00:24.9]}
29. Bxe6+ {[%clk 0:00:24.1]} 29... Kh8 {[%clk 0:00:25.3]} 30. Ra7 {[%clk
0:00:19.7]} 30... Nd3+ {[%clk 0:00:19.2]} 31. Kb6 {[%clk 0:00:18.3]} 31... Rd6+
{[%clk 0:00:18.7]} 32. Ka5 {[%clk 0:00:17]} 32... Rxe6 {[%clk 0:00:19.6]} 0-1

[Event "*** Titled Tuesday Blitz"]
[Site "Chess.com"]
[Date "2020.12.29"]
[Round "4"]
[White "Tekushka"]
[Black "pavelalexandru07"]
[Result "1-0"]
[WhiteElo "2452"]
[BlackElo "2281"]
[TimeControl "180+1"]
[EndTime "10:38:36 PST"]
[Termination "Tekushka won by checkmate"]

1. e4 {[%clk 0:03:00.9]} 1... c5 {[%clk 0:03:00]} 2. Nf3 {[%clk 0:03:00.7]} 2...
d6 {[%clk 0:03:00.3]} 3. d4 {[%clk 0:03:00.6]} 3... cxd4 {[%clk 0:03:01.2]} 4.
Nxd4 {[%clk 0:03:00.9]} 4... Nf6 {[%clk 0:03:01.6]} 5. Nc3 {[%clk 0:03:01.5]}
5... a6 {[%clk 0:03:01.9]} 6. Be3 {[%clk 0:03:01.8]} 6... e5 {[%clk 0:03:00.6]}
7. Nb3 {[%clk 0:03:01.6]} 7... Be6 {[%clk 0:03:01]} 8. h3 {[%clk 0:03:01.1]}
8... h5 {[%clk 0:02:59.3]} 9. f4 {[%clk 0:02:48.3]} 9... Be7 {[%clk 0:02:51.2]}
10. f5 {[%clk 0:02:46.6]} 10... Bd7 {[%clk 0:02:51.4]} 11. Qd2 {[%clk
0:02:34.8]} 11... Bc6 {[%clk 0:02:50.7]} 12. Bd3 {[%clk 0:02:23.2]} 12... b5
{[%clk 0:02:45.7]} 13. a3 {[%clk 0:02:17.6]} 13... Nbd7 {[%clk 0:02:45.4]} 14.
O-O-O {[%clk 0:02:09.9]} 14... Rc8 {[%clk 0:02:29.7]} 15. Kb1 {[%clk 0:01:43.8]}
15... Bb7 {[%clk 0:02:24.4]} 16. Rhe1 {[%clk 0:01:28.9]} 16... Qc7 {[%clk
0:02:17.5]} 17. Bf2 {[%clk 0:01:21.4]} 17... Nb6 {[%clk 0:02:16]} 18. Bxb6
{[%clk 0:01:19.1]} 18... Qxb6 {[%clk 0:02:15.4]} 19. Nd5 {[%clk 0:01:03.6]}
19... Bxd5 {[%clk 0:01:44.3]} 20. exd5 {[%clk 0:01:03.7]} 20... h4 {[%clk
0:01:32.3]} 21. Bf1 {[%clk 0:00:58.6]} 21... Nh5 {[%clk 0:01:25.8]} 22. Na5
{[%clk 0:00:54.1]} 22... Nf4 {[%clk 0:01:24.4]} 23. Nc6 {[%clk 0:00:47.1]} 23...
Bg5 {[%clk 0:00:54.3]} 24. Qb4 {[%clk 0:00:40.3]} 24... Kd7 {[%clk 0:00:48.2]}
25. a4 {[%clk 0:00:28.4]} 25... Rc7 {[%clk 0:00:21]} 26. axb5 {[%clk 0:00:27.1]}
26... axb5 {[%clk 0:00:21.3]} 27. Bxb5 {[%clk 0:00:25.5]} 27... Kc8 {[%clk
0:00:21.8]} 28. Re3 {[%clk 0:00:17.1]} 28... Nxd5 {[%clk 0:00:20.8]} 29. Rxd5
{[%clk 0:00:14.6]} 29... Bxe3 {[%clk 0:00:19.3]} 30. Rxd6 {[%clk 0:00:13.9]}
30... Bc5 {[%clk 0:00:19.2]} 31. Ba6+ {[%clk 0:00:12.6]} 31... Qxa6 {[%clk
0:00:16.3]} 32. Qb8# {[%clk 0:00:12.5]} 1-0

[Event "*** Titled Tuesday Blitz"]
[Site "Chess.com"]
[Date "2020.12.29"]
[Round "4"]
[White "Kazmin_Dmitrij"]
[Black "TomasKapitanchuk"]
[Result "0-1"]
[WhiteElo "2258"]
[BlackElo "2438"]
[TimeControl "180+1"]
[EndTime "10:38:36 PST"]
[Termination "TomasKapitanchuk won on time"]

1. e4 {[%clk 0:03:00.9]} 1... c5 {[%clk 0:03:00.4]} 2. Nc3 {[%clk 0:02:59.3]}
2... Nc6 {[%clk 0:03:00.1]} 3. Bb5 {[%clk 0:02:58.3]} 3... Nd4 {[%clk
0:02:59.9]} 4. Bd3 {[%clk 0:02:57.8]} 4... e6 {[%clk 0:02:58.3]} 5. Nce2 {[%clk
0:02:56.9]} 5... Nc6 {[%clk 0:02:56.8]} 6. c3 {[%clk 0:02:53.3]} 6... d5 {[%clk
0:02:56.4]} 7. exd5 {[%clk 0:02:48.7]} 7... Qxd5 {[%clk 0:02:57.3]} 8. Qc2
{[%clk 0:02:38.7]} 8... Qxg2 {[%clk 0:02:55.1]} 9. Be4 {[%clk 0:02:37.9]} 9...
Qg5 {[%clk 0:02:47.1]} 10. Nf3 {[%clk 0:02:30.9]} 10... Qd8 {[%clk 0:02:44.7]}
11. d4 {[%clk 0:02:24.7]} 11... Nf6 {[%clk 0:02:43.2]} 12. Bg5 {[%clk 0:02:20]}
12... Qb6 {[%clk 0:02:40.5]} 13. Bd3 {[%clk 0:02:07]} 13... Be7 {[%clk
0:02:36.5]} 14. Rg1 {[%clk 0:02:03.3]} 14... Bd7 {[%clk 0:02:31.8]} 15. O-O-O
{[%clk 0:01:48.7]} 15... O-O-O {[%clk 0:02:29.8]} 16. Bf4 {[%clk 0:01:44.4]}
16... Nh5 {[%clk 0:02:18]} 17. Be3 {[%clk 0:01:39.3]} 17... Kb8 {[%clk
0:02:12.9]} 18. dxc5 {[%clk 0:01:30.1]} 18... Bxc5 {[%clk 0:02:13.8]} 19. Bxc5
{[%clk 0:01:28.9]} 19... Qxc5 {[%clk 0:02:14.7]} 20. Ng5 {[%clk 0:01:04]} 20...
Ne5 {[%clk 0:02:04.9]} 21. Ne4 {[%clk 0:00:57.6]} 21... Qc7 {[%clk 0:01:59.2]}
22. Rg5 {[%clk 0:00:31.2]} 22... g6 {[%clk 0:01:58.1]} 23. Kb1 {[%clk
0:00:20.8]} 23... Nxd3 {[%clk 0:01:51.3]} 24. Rxd3 {[%clk 0:00:18.1]} 24... Bc6
{[%clk 0:01:47.7]} 25. Nc5 {[%clk 0:00:12.4]} 25... Qxh2 {[%clk 0:01:43.4]} 26.
b4 {[%clk 0:00:08.5]} 26... Nf4 {[%clk 0:01:34.4]} 27. Nxf4 {[%clk 0:00:05.6]}
27... Qxf4 {[%clk 0:01:35.3]} 28. Rgg3 {[%clk 0:00:05.2]} 28... Bb5 {[%clk
0:01:30.1]} 29. Rxd8+ {[%clk 0:00:04]} 29... Rxd8 {[%clk 0:01:31]} 30. Kb2
{[%clk 0:00:04]} 30... Rd2 {[%clk 0:01:28.7]} 31. a4 {[%clk 0:00:03.5]} 31...
Rxc2+ {[%clk 0:01:26.8]} 32. Kxc2 {[%clk 0:00:04.4]} 32... Bc6 {[%clk 0:01:27]}
33. Kb3 {[%clk 0:00:04.2]} 33... Qxf2 {[%clk 0:01:25.6]} 34. Rd3 {[%clk
0:00:04.4]} 34... Bd5+ {[%clk 0:01:25]} 35. c4 {[%clk 0:00:04.2]} 35... Bc6
{[%clk 0:01:18.2]} 36. Rd8+ {[%clk 0:00:04.1]} 36... Kc7 {[%clk 0:01:18.6]} 37.
Rf8 {[%clk 0:00:04.3]} 37... Qe3+ {[%clk 0:01:17.8]} 38. Kb2 {[%clk 0:00:04.7]}
38... Qd4+ {[%clk 0:01:13.7]} 39. Kb3 {[%clk 0:00:04.6]} 39... b6 {[%clk
0:01:09.8]} 40. Rxf7+ {[%clk 0:00:04.2]} 40... Kd6 {[%clk 0:01:09.7]} 41. Na6
{[%clk 0:00:03]} 41... Qd3+ {[%clk 0:01:07.6]} 42. Kb2 {[%clk 0:00:03.2]} 42...
Qxc4 {[%clk 0:01:05.3]} 43. b5 {[%clk 0:00:03.4]} 43... Qxa4 {[%clk 0:01:02.8]}
44. Nb8 {[%clk 0:00:02.3]} 44... Qxb5+ {[%clk 0:01:02.3]} 45. Ka3 {[%clk
0:00:02.3]} 45... Qa4+ {[%clk 0:01:01.8]} 46. Kb2 {[%clk 0:00:02.4]} 46... Bd5
{[%clk 0:01:02.7]} 0-1

[Event "*** Titled Tuesday Blitz"]
[Site "Chess.com"]
[Date "2020.12.29"]
[Round "4"]
[White "03revilo"]
[Black "djano"]
[Result "0-1"]
[WhiteElo "2299"]
[BlackElo "2459"]
[TimeControl "180+1"]
[EndTime "10:38:37 PST"]
[Termination "djano won by resignation"]

1. c4 {[%clk 0:03:00.9]} 1... g6 {[%clk 0:02:58.4]} 2. Nc3 {[%clk 0:03:00.6]}
2... Bg7 {[%clk 0:02:58.3]} 3. Nf3 {[%clk 0:03:01.2]} 3... c5 {[%clk 0:02:58.3]}
4. e3 {[%clk 0:03:00.4]} 4... Nc6 {[%clk 0:02:58.7]} 5. d4 {[%clk 0:02:59.5]}
5... cxd4 {[%clk 0:02:59]} 6. exd4 {[%clk 0:03:00.4]} 6... d6 {[%clk 0:02:59.4]}
7. d5 {[%clk 0:02:59.8]} 7... Ne5 {[%clk 0:02:59.4]} 8. Nxe5 {[%clk 0:02:57.4]}
8... Bxe5 {[%clk 0:03:00.3]} 9. Bd3 {[%clk 0:02:53]} 9... Nf6 {[%clk 0:02:55.8]}
10. Qc2 {[%clk 0:02:28.2]} 10... Bd7 {[%clk 0:02:41]} 11. Ne2 {[%clk 0:02:04.6]}
11... Ng4 {[%clk 0:02:31.8]} 12. h3 {[%clk 0:02:00.1]} 12... Nxf2 {[%clk
0:01:44]} 13. Kxf2 {[%clk 0:01:59.2]} 13... b5 {[%clk 0:01:43.8]} 14. Bf4 {[%clk
0:01:39]} 14... bxc4 {[%clk 0:01:41.9]} 15. Bxc4 {[%clk 0:01:36.1]} 15... Bg7
{[%clk 0:01:42.5]} 16. Nc3 {[%clk 0:01:28.2]} 16... Rc8 {[%clk 0:01:37.9]} 17.
b3 {[%clk 0:01:19.8]} 17... Bf5 {[%clk 0:01:30.6]} 18. Qd2 {[%clk 0:01:16.8]}
18... O-O {[%clk 0:01:19.2]} 19. Rac1 {[%clk 0:01:14.8]} 19... e6 {[%clk
0:01:01.6]} 20. dxe6 {[%clk 0:01:12.3]} 20... fxe6 {[%clk 0:01:01.4]} 21. Qxd6
{[%clk 0:00:49.8]} 21... Qa5 {[%clk 0:00:52.5]} 22. Rhf1 {[%clk 0:00:17]} 22...
Bxc3 {[%clk 0:00:50.8]} 23. Bxe6+ {[%clk 0:00:15.7]} 23... Bxe6 {[%clk
0:00:49.5]} 24. Qxe6+ {[%clk 0:00:16.6]} 24... Kg7 {[%clk 0:00:47.6]} 25. Kg1
{[%clk 0:00:16.3]} 25... Bd4+ {[%clk 0:00:35.9]} 26. Kh2 {[%clk 0:00:15.8]}
26... Rxc1 {[%clk 0:00:33.8]} 27. Qe7+ {[%clk 0:00:14.1]} 27... Rf7 {[%clk
0:00:31.7]} 28. Bh6+ {[%clk 0:00:09.1]} 28... Kxh6 {[%clk 0:00:30.5]} 29. Qh4+
{[%clk 0:00:07.5]} 29... Qh5 {[%clk 0:00:24.7]} 30. Qxh5+ {[%clk 0:00:03.3]}
30... gxh5 {[%clk 0:00:25.6]} 31. Rxf7 {[%clk 0:00:03.4]} 31... Be5+ {[%clk
0:00:25.3]} 32. g3 {[%clk 0:00:04.3]} 0-1

[Event "*** Titled Tuesday Blitz"]
[Site "Chess.com"]
[Date "2020.12.29"]
[Round "4"]
[White "ulkaf961"]
[Black "Itk04"]
[Result "1-0"]
[WhiteElo "2292"]
[BlackElo "2477"]
[TimeControl "180+1"]
[EndTime "10:38:40 PST"]
[Termination "ulkaf961 won by checkmate"]

1. d4 {[%clk 0:03:00.9]} 1... Nf6 {[%clk 0:02:59.4]} 2. c4 {[%clk 0:02:59.4]}
2... e6 {[%clk 0:02:59.6]} 3. Nc3 {[%clk 0:02:59.2]} 3... Bb4 {[%clk 0:02:59.9]}
4. e3 {[%clk 0:02:59.5]} 4... O-O {[%clk 0:03:00.2]} 5. Bd3 {[%clk 0:02:59.9]}
5... c5 {[%clk 0:03:00.3]} 6. Nf3 {[%clk 0:02:59.2]} 6... d5 {[%clk 0:02:57.1]}
7. O-O {[%clk 0:02:57.2]} 7... Nc6 {[%clk 0:02:57.6]} 8. a3 {[%clk 0:02:53.6]}
8... Bxc3 {[%clk 0:02:57.3]} 9. bxc3 {[%clk 0:02:53.7]} 9... dxc4 {[%clk
0:02:52.1]} 10. Bxc4 {[%clk 0:02:53.6]} 10... b6 {[%clk 0:02:52.7]} 11. a4
{[%clk 0:02:48.5]} 11... Qc7 {[%clk 0:02:51.8]} 12. Qe2 {[%clk 0:02:39.9]} 12...
Na5 {[%clk 0:02:49.4]} 13. Ba2 {[%clk 0:02:35.7]} 13... Bb7 {[%clk 0:02:47.6]}
14. Ne5 {[%clk 0:02:14.1]} 14... Rfd8 {[%clk 0:02:34.7]} 15. Bb2 {[%clk
0:01:47.4]} 15... Rac8 {[%clk 0:02:20.3]} 16. Rac1 {[%clk 0:01:45.4]} 16... Nd7
{[%clk 0:02:17.6]} 17. f4 {[%clk 0:01:15.2]} 17... Be4 {[%clk 0:02:08]} 18. Nxf7
{[%clk 0:00:58.2]} 18... Kxf7 {[%clk 0:02:04.5]} 19. f5 {[%clk 0:00:58.6]} 19...
c4 {[%clk 0:01:36.5]} 20. fxe6+ {[%clk 0:00:51.2]} 20... Kxe6 {[%clk 0:01:37.4]}
21. Qg4+ {[%clk 0:00:51.3]} 21... Kd5 {[%clk 0:01:37.9]} 22. Rf5+ {[%clk
0:00:41.5]} 22... Bxf5 {[%clk 0:01:36]} 23. Qxf5+ {[%clk 0:00:41.7]} 23... Kc6
{[%clk 0:01:35.1]} 24. Qe4+ {[%clk 0:00:41.8]} 24... Kd6 {[%clk 0:01:29.9]} 25.
Ba3+ {[%clk 0:00:42]} 25... Qc5 {[%clk 0:01:11.6]} 26. dxc5+ {[%clk 0:00:41.8]}
26... bxc5 {[%clk 0:01:12]} 27. Rd1+ {[%clk 0:00:37.1]} 27... Kc7 {[%clk
0:01:11.1]} 28. Qe7 {[%clk 0:00:36.5]} 28... Nc6 {[%clk 0:01:09.6]} 29. Qd6+
{[%clk 0:00:35]} 29... Kb7 {[%clk 0:01:10.1]} 30. Rb1+ {[%clk 0:00:33.4]} 30...
Nb6 {[%clk 0:01:10.4]} 31. Qxc5 {[%clk 0:00:32.9]} 31... Rd2 {[%clk 0:01:09.8]}
32. Bxc4 {[%clk 0:00:32]} 32... Nb8 {[%clk 0:00:50.9]} 33. Bd5+ {[%clk
0:00:28.6]} 33... Nc6 {[%clk 0:00:45.2]} 34. a5 {[%clk 0:00:26.1]} 34... Rf8
{[%clk 0:00:19.4]} 35. Qxc6+ {[%clk 0:00:24.1]} 35... Ka6 {[%clk 0:00:18.8]} 36.
Qb7+ {[%clk 0:00:22.1]} 36... Kxa5 {[%clk 0:00:19]} 37. Qxa7# {[%clk 0:00:22.4]}
1-0

[Event "*** Titled Tuesday Blitz"]
[Site "Chess.com"]
[Date "2020.12.29"]
[Round "4"]
[White "zurzan"]
[Black "VladaSviridova"]
[Result "1-0"]
[WhiteElo "2060"]
[BlackElo "2241"]
[TimeControl "180+1"]
[EndTime "10:38:40 PST"]
[Termination "zurzan won on time"]

1. f4 {[%clk 0:03:00.9]} 1... d5 {[%clk 0:02:59.2]} 2. Nf3 {[%clk 0:03:00.9]}
2... Nf6 {[%clk 0:02:59.5]} 3. g3 {[%clk 0:03:01.2]} 3... g6 {[%clk 0:03:00]} 4.
Bg2 {[%clk 0:03:02.1]} 4... Bg7 {[%clk 0:02:59.1]} 5. O-O {[%clk 0:03:03]} 5...
O-O {[%clk 0:02:58.1]} 6. d3 {[%clk 0:03:03.9]} 6... c5 {[%clk 0:02:54.1]} 7. c3
{[%clk 0:03:04.8]} 7... Nc6 {[%clk 0:02:53.4]} 8. Qc2 {[%clk 0:03:04.5]} 8... b6
{[%clk 0:02:45.7]} 9. e4 {[%clk 0:03:03.3]} 9... dxe4 {[%clk 0:02:32]} 10. dxe4
{[%clk 0:03:04.2]} 10... Ba6 {[%clk 0:02:30.1]} 11. Rd1 {[%clk 0:03:03.8]} 11...
Qc7 {[%clk 0:02:29.4]} 12. e5 {[%clk 0:02:54]} 12... Nd7 {[%clk 0:02:22.6]} 13.
a3 {[%clk 0:02:47.8]} 13... Rac8 {[%clk 0:02:17.3]} 14. c4 {[%clk 0:02:47.3]}
14... Rfd8 {[%clk 0:02:07.5]} 15. b3 {[%clk 0:02:47.1]} 15... e6 {[%clk
0:01:48]} 16. Nc3 {[%clk 0:02:46.3]} 16... Ndb8 {[%clk 0:01:21.5]} 17. Be3
{[%clk 0:02:45.1]} 17... Rxd1+ {[%clk 0:01:17.1]} 18. Rxd1 {[%clk 0:02:46]}
18... Rd8 {[%clk 0:01:17.4]} 19. Ne4 {[%clk 0:02:38]} 19... Rxd1+ {[%clk
0:00:52.7]} 20. Qxd1 {[%clk 0:02:38.9]} 20... Qd7 {[%clk 0:00:50.4]} 21. Nd6
{[%clk 0:02:36.6]} 21... Bf8 {[%clk 0:00:48.5]} 22. Ng5 {[%clk 0:02:24.2]} 22...
Nd8 {[%clk 0:00:46.6]} 23. Nge4 {[%clk 0:02:19.4]} 23... Be7 {[%clk 0:00:27.5]}
24. Qg4 {[%clk 0:02:07.7]} 24... Nb7 {[%clk 0:00:23.5]} 25. Nxf7 {[%clk
0:01:47.5]} 25... Kxf7 {[%clk 0:00:18.6]} 26. Ng5+ {[%clk 0:01:45.6]} 26... Kg7
{[%clk 0:00:17.6]} 27. Nxe6+ {[%clk 0:01:44.6]} 27... Kg8 {[%clk 0:00:17.2]} 28.
f5 {[%clk 0:01:42.7]} 28... Nd8 {[%clk 0:00:16.1]} 29. Bd5 {[%clk 0:01:37.5]}
29... Kh8 {[%clk 0:00:12.4]} 30. f6 {[%clk 0:01:35.5]} 30... Bf8 {[%clk
0:00:09.1]} 31. Nxd8 {[%clk 0:00:43.5]} 31... Qxd8 {[%clk 0:00:06.7]} 32. e6
{[%clk 0:00:42.2]} 32... Qxf6 {[%clk 0:00:03.8]} 33. Bg5 {[%clk 0:00:40.9]}
33... Qa1+ {[%clk 0:00:02.5]} 34. Kg2 {[%clk 0:00:40.6]} 34... Bc8 {[%clk
0:00:01.5]} 35. Qf4 {[%clk 0:00:38.4]} 35... Bg7 {[%clk 0:00:01.3]} 36. e7
{[%clk 0:00:37.5]} 36... Qb2+ {[%clk 0:00:01.3]} 37. Qf2 {[%clk 0:00:34]} 1-0

[Event "*** Titled Tuesday Blitz"]
[Site "Chess.com"]
[Date "2020.12.29"]
[Round "4"]
[White "Jospem"]
[Black "vinniethepooh"]
[Result "1-0"]
[WhiteElo "2986"]
[BlackElo "2697"]
[TimeControl "180+1"]
[EndTime "10:38:43 PST"]
[Termination "Jospem won by resignation"]

1. e4 {[%clk 0:03:00.9]} 1... c5 {[%clk 0:03:00.5]} 2. Nf3 {[%clk 0:03:01.2]}
2... d6 {[%clk 0:03:01.1]} 3. c3 {[%clk 0:03:01.3]} 3... Nf6 {[%clk 0:03:00.4]}
4. h3 {[%clk 0:03:01.4]} 4... g6 {[%clk 0:03:00.4]} 5. Bd3 {[%clk 0:03:01.6]}
5... Bg7 {[%clk 0:03:00.7]} 6. Bc2 {[%clk 0:03:02.2]} 6... e5 {[%clk 0:02:58.5]}
7. O-O {[%clk 0:03:00.5]} 7... O-O {[%clk 0:02:57.8]} 8. d4 {[%clk 0:03:00.7]}
8... cxd4 {[%clk 0:02:58.3]} 9. cxd4 {[%clk 0:03:01.6]} 9... exd4 {[%clk
0:02:59]} 10. Nxd4 {[%clk 0:03:02.3]} 10... Nc6 {[%clk 0:02:59.6]} 11. Nxc6
{[%clk 0:03:01.7]} 11... bxc6 {[%clk 0:02:59.3]} 12. Nc3 {[%clk 0:03:02.6]}
12... d5 {[%clk 0:02:59.3]} 13. Bg5 {[%clk 0:02:48.5]} 13... h6 {[%clk
0:02:37.6]} 14. Bh4 {[%clk 0:02:23.8]} 14... g5 {[%clk 0:02:33.2]} 15. Bg3
{[%clk 0:02:23.6]} 15... Ba6 {[%clk 0:02:08.7]} 16. Re1 {[%clk 0:01:38]} 16...
d4 {[%clk 0:01:53.7]} 17. Nb1 {[%clk 0:01:07.4]} 17... d3 {[%clk 0:01:53.4]} 18.
Bb3 {[%clk 0:01:07]} 18... Qd4 {[%clk 0:01:52.6]} 19. Nd2 {[%clk 0:01:05.4]}
19... Nd7 {[%clk 0:01:39.4]} 20. Rc1 {[%clk 0:01:00]} 20... Nc5 {[%clk
0:01:35.8]} 21. Bc4 {[%clk 0:01:00.1]} 21... Rfd8 {[%clk 0:01:24.4]} 22. b4
{[%clk 0:00:54.9]} 22... Bxc4 {[%clk 0:00:36.1]} 23. Rxc4 {[%clk 0:00:53.6]}
23... Qb2 {[%clk 0:00:36.7]} 24. bxc5 {[%clk 0:00:28.1]} 24... Bc3 {[%clk
0:00:37.1]} 25. Rxc3 {[%clk 0:00:28.2]} 25... Qxc3 {[%clk 0:00:37.2]} 26. e5
{[%clk 0:00:29]} 26... Rab8 {[%clk 0:00:21.3]} 27. e6 {[%clk 0:00:28.4]} 27...
fxe6 {[%clk 0:00:15.8]} 28. Bxb8 {[%clk 0:00:27.1]} 28... Rxb8 {[%clk
0:00:14.7]} 29. Rxe6 {[%clk 0:00:23.7]} 29... Rb2 {[%clk 0:00:07.8]} 30. Qh5
{[%clk 0:00:18.7]} 30... Rb1+ {[%clk 0:00:04.2]} 31. Kh2 {[%clk 0:00:18.6]}
31... Qxd2 {[%clk 0:00:02.3]} 32. Qg6+ {[%clk 0:00:16.9]} 1-0

[Event "*** Titled Tuesday Blitz"]
[Site "Chess.com"]
[Date "2020.12.29"]
[Round "4"]
[White "Neftegor"]
[Black "Hikaru"]
[Result "0-1"]
[WhiteElo "2571"]
[BlackElo "3242"]
[TimeControl "180+1"]
[EndTime "10:38:44 PST"]
[Termination "Hikaru won by resignation"]

1. d4 {[%clk 0:03:00.9]} 1... g6 {[%clk 0:02:59.9]} 2. e4 {[%clk 0:02:59.5]}
2... Bg7 {[%clk 0:03:00.8]} 3. Nf3 {[%clk 0:02:58.6]} 3... c6 {[%clk 0:02:54.2]}
4. Bd3 {[%clk 0:02:57.6]} 4... d5 {[%clk 0:02:55.1]} 5. e5 {[%clk 0:02:56.4]}
5... Bg4 {[%clk 0:02:55.3]} 6. Nbd2 {[%clk 0:02:56.4]} 6... e6 {[%clk
0:02:54.4]} 7. h3 {[%clk 0:02:56.2]} 7... Bxf3 {[%clk 0:02:54.9]} 8. Nxf3 {[%clk
0:02:56.3]} 8... Nd7 {[%clk 0:02:55.8]} 9. O-O {[%clk 0:02:55.5]} 9... c5 {[%clk
0:02:56]} 10. c3 {[%clk 0:02:55.7]} 10... Ne7 {[%clk 0:02:56.6]} 11. g4 {[%clk
0:02:51.2]} 11... Nc6 {[%clk 0:02:55.2]} 12. Be3 {[%clk 0:02:50.7]} 12... cxd4
{[%clk 0:02:52.2]} 13. cxd4 {[%clk 0:02:49.9]} 13... f6 {[%clk 0:02:52]} 14.
exf6 {[%clk 0:02:44.1]} 14... Qxf6 {[%clk 0:02:52.9]} 15. Bg5 {[%clk 0:02:38.4]}
15... Qf7 {[%clk 0:02:50.5]} 16. Be3 {[%clk 0:02:24.7]} 16... O-O {[%clk
0:02:49.8]} 17. Ng5 {[%clk 0:02:24.5]} 17... Qf6 {[%clk 0:02:47.8]} 18. Be2
{[%clk 0:01:50.2]} 18... Rae8 {[%clk 0:02:42.6]} 19. Nf3 {[%clk 0:01:42.1]}
19... Nb6 {[%clk 0:02:38]} 20. b3 {[%clk 0:01:40.4]} 20... Nc8 {[%clk
0:02:36.8]} 21. Rc1 {[%clk 0:01:36.1]} 21... Nd6 {[%clk 0:02:37]} 22. Rxc6
{[%clk 0:01:21.1]} 22... bxc6 {[%clk 0:02:36.4]} 23. Ne5 {[%clk 0:01:21.7]}
23... Qh4 {[%clk 0:02:30.8]} 24. Kg2 {[%clk 0:01:20.4]} 24... c5 {[%clk
0:02:08.4]} 25. Nf3 {[%clk 0:01:17.3]} 25... Qe7 {[%clk 0:02:03.2]} 26. dxc5
{[%clk 0:01:17.2]} 26... Ne4 {[%clk 0:02:03.4]} 27. b4 {[%clk 0:01:16.5]} 27...
Nc3 {[%clk 0:02:01.4]} 28. Qd3 {[%clk 0:01:11.3]} 28... Nxe2 {[%clk 0:01:59.5]}
29. Qxe2 {[%clk 0:01:10.8]} 29... e5 {[%clk 0:02:00.2]} 30. Re1 {[%clk
0:00:54.4]} 30... h5 {[%clk 0:01:40.7]} 31. Ng5 {[%clk 0:00:46.4]} 31... Bf6
{[%clk 0:01:32.9]} 32. h4 {[%clk 0:00:46.1]} 32... hxg4 {[%clk 0:01:25.6]} 33.
Qxg4 {[%clk 0:00:45.7]} 33... Bxg5 {[%clk 0:01:24.8]} 34. Bxg5 {[%clk 0:00:44]}
34... Qf7 {[%clk 0:01:25.2]} 35. Qg3 {[%clk 0:00:36.3]} 35... e4 {[%clk
0:01:20.6]} 36. Bh6 {[%clk 0:00:33.6]} 36... Qf3+ {[%clk 0:01:18.4]} 37. Qxf3
{[%clk 0:00:33.7]} 37... exf3+ {[%clk 0:01:07.6]} 38. Kf1 {[%clk 0:00:33.2]}
38... Rxe1+ {[%clk 0:01:07.3]} 39. Kxe1 {[%clk 0:00:32.2]} 39... Re8+ {[%clk
0:01:08.2]} 40. Kd1 {[%clk 0:00:30.2]} 40... Kf7 {[%clk 0:01:07.4]} 41. b5
{[%clk 0:00:29.2]} 41... Re2 {[%clk 0:01:01.8]} 42. a4 {[%clk 0:00:23.5]} 42...
Rxf2 {[%clk 0:00:59.9]} 43. Bd2 {[%clk 0:00:20.3]} 43... Rh2 {[%clk 0:00:43.1]}
44. b6 {[%clk 0:00:19]} 44... axb6 {[%clk 0:00:35.6]} 45. cxb6 {[%clk
0:00:18.6]} 45... f2 {[%clk 0:00:36.2]} 46. Ke2 {[%clk 0:00:17.8]} 46... f1=Q+
{[%clk 0:00:36.9]} 47. Kxf1 {[%clk 0:00:17.7]} 47... Rxd2 {[%clk 0:00:37.8]} 48.
a5 {[%clk 0:00:17.7]} 48... Rb2 {[%clk 0:00:37.8]} 0-1